Cogmind - Beta 13 @@@ ROGUE MODE // 2024.04.06 @ 12:58:03 Player: Asterix Result: Destroyed by G-34 Mercenary with Small Laser Performance ------------- Evolutions (1) 500 Regions Visited (2) 400 Robots Destroyed (25) 125 Value Destroyed (643) 643 Prototype IDs (2) 40 Alien Tech Used (0) 0 Bonus (0) 0 TOTAL SCORE: 1708 Bonus ------- None Cogmind --------- Core Integrity 0/400 Matter 221/300 Energy 100/100 System Corruption 0% Temperature Cool (6) Movement Core (50) Location -9/Materials Parts ------- > --- POWER (2) -------- (None) > --- PROPULSION (2) --- (None) > --- UTILITY (3) ------ (None) > --- WEAPON (2) ------- (None) > --- INVENTORY (5) ---- (None) Peak State ------------ > --- POWER ------------ Ion Engine Improved Ion Engine > --- PROPULSION ------- Light Treads > --- UTILITY ---------- Heat Sink Targeting Computer Power Shielding > --- WEAPON ----------- Light Assault Rifle Heavy Assault Rifle > --- INVENTORY -------- Beam Cannon [Rating: 10] Favorites ----------- Power Ion Engine Engine Ion Engine Propulsion Light Treads Treads Light Treads Leg Aluminum Leg Utility Improved Terrain Scanner Device Improved Terrain Scanner Storage Small Storage Unit Processor Targeting Computer Protection Power Shielding Weapon Small Laser Energy Gun Small Laser Energy Cannon Beam Cannon Ballistic Gun Light Assault Rifle Build | -11 -10 -9 ------- Run | Yrd Mat Mat Slots Evolved 2 | . . 2 Power 1 | . . 1 Propulsion . | . . . Utility 1 | . . 1 Weapon . | . . . Parts Attached 29 | 7 13 9 Power 5 | 1 2 2 Engine 5 | 1 2 2 Core . | . . . Reactor . | . . . Propulsion 6 | 2 3 1 Treads 5 | 2 2 1 Leg 1 | . 1 . Wheel . | . . . Hover . | . . . Flight . | . . . Utility 7 | 2 3 2 Device 3 | 1 1 1 Storage 2 | 1 1 . Processor 1 | . . 1 Hackware . | . . . Protection 1 | . 1 . Artifact . | . . . Weapon 11 | 2 5 4 Energy Gun 5 | 2 3 . Energy Cannon 2 | . 1 1 Ballistic Gun 4 | . 1 3 Ballistic Cannon . | . . . Launcher . | . . . Special Weapon . | . . . Impact Weapon . | . . . Slashing Weapon . | . . . Piercing Weapon . | . . . Special Melee Weapon . | . . . Unidentified Prototypes . | . . . Parts Lost 11 | . . 11 Power 2 | . . 2 Propulsion 2 | . . 2 Utility 3 | . . 3 Weapon 4 | . . 4 Highest Loss Streak 10 | . . 10 To Critical Strikes . | . . . Average Slot Usage (%) 86 | . 97 66 Engine 14 | . 14 14 Treads 16 | . 24 1 Leg 2 | . 1 4 Device 12 | . 16 6 Storage 5 | . 6 3 Processor 3 | . . 9 Protection 6 | . 5 9 Energy Gun 13 | . 18 3 Energy Cannon 3 | . 3 3 Ballistic Gun 7 | . 5 10 Naked Turns 26 | . . 26 Heaviest Build 18 | 14 14 18 Greatest Support 40 | 40 40 20 Greatest Overweight (x) 5 | . 1 5 Average Overweight (x) . | . . 1 Largest Inventory Capacity 8 | 8 8 5 Average Capacity 6 | 7 5 5 Most Carried 5 | 2 5 4 Average Carried 1 | . 2 . Final Capacity 8 | 8 5 5 Final Carried 1 | 1 1 . Class Distribution -------------------- 92% | Mutant 7% | Scavenger-Mutant Dominant Class ---------------- Mutant | -10/Materials Scavenger-Mutant | -9/Materials Resources | -11 -10 -9 ----------- Run | Yrd Mat Mat Matter Collected 605 | 270 182 153 Remotely . | . . . Salvage Created 862 | 125 503 234 Parts 56 | 4 31 21 Haulers Intercepted 1 | . . 1 Recyclers Shooed 2 | . . 2 Parts Field Recycled . | . . . Retrieved Matter . | . . . Parts Self-Destructed . | . . . Prevented . | . . . Kills | -11 -10 -9 ------- Run | Yrd Mat Mat Combat Hostiles Destroyed 19 | . 11 8 Guns 17 | . 11 6 Cannons 2 | . . 2 Classes Destroyed 7 | 2 2 3 Tunneler 1 | 1 . . Hauler 1 | . . 1 Recycler 1 | 1 . . Watcher 3 | . 3 . Swarmer 6 | . . 6 Grunt 11 | . 11 . Sentry 2 | . . 2 Best Kill Streak 5 | 2 5 4 Combat Bots Only 4 | . 2 4 Max Kills in Single Turn 1 | 1 1 1 Gunslinging . | . . . Exploded . | . . . Melee . | . . . Uniques/NPCs Destroyed . | . . . Combat | -11 -10 -9 -------- Run | Yrd Mat Mat Hostile Shots Fired 234 | . 80 154 Missed 58 | . 17 41 Damage Taken 1896 | . 756 1140 Core 586 | . 181 405 Absorbed by Shields . | . . . Redirected to Shielding 51 | . 3 48 Core Remaining (%) 63 | 100 27 . Volleys Fired 112 | 5 57 50 Largest 2 | 2 2 2 Hottest 100 | 90 100 100 Shots Fired 197 | 10 109 78 Gun 169 | 10 94 65 Cannon 28 | . 15 13 Launcher . | . . . Special . | . . . Kinetic 91 | . 36 55 Thermal 106 | 10 73 23 Explosive . | . . . Electromagnetic . | . . . Robot Hit Streak 11 | 7 11 8 Robot Miss Streak 5 | 2 4 5 Penetration Max . | . . . Secondary Targets 2 | . . 2 Max Gunslinging Chain 1 | . . 1 Shots Hit Robots 118 | 8 62 48 Core Hits 50 | 3 30 17 Critical Kills . | . . . Critical Parts Destroyed . | . . . Critical Strikes 2 | . 2 . Burn 2 | . 2 . Melee Attacks . | . . . Impact . | . . . Slashing . | . . . Piercing . | . . . Sneak Attacks . | . . . Combat Hostiles . | . . . Follow-up Attacks . | . . . Damage Inflicted 1426 | 94 726 606 Guns 1109 | 94 585 430 Cannons 316 | . 141 175 Explosions . | . . . Melee . | . . . Ramming 1 | . . 1 Kinetic 510 | . 139 371 Thermal 915 | 94 587 234 Explosive . | . . . Electromagnetic . | . . . Impact . | . . . Slashing . | . . . Piercing . | . . . Highest Corruption . | . . . Average Corruption . | . . . Corruption Purged . | . . . Corruption Blocked . | . . . Overload Shots . | . . . Overflow Damage . | . . . Projectiles . | . . . Explosions . | . . . Melee . | . . . Knockbacks . | . . . Impact . | . . . Kinetic . | . . . Secondary . | . . . Self-Inflicted Damage . | . . . Shots . | . . . Rammed . | . . . Targets Rammed 2 | . . 2 Kicked 2 | . . 2 Crushed . | . . . Highest Temperature 440 | 112 440 184 Average Temperature 84 | 62 90 77 Received Heat Transfer 654 | . 417 237 Effects 4 | . 4 . Energy Bleed 1 | . 1 . Damage (major) 3 | . 3 . Siege Activations . | . . . Robots Corrupted . | . . . Combat Hostiles . | . . . Parts Fried . | . . . Impact Corruptions . | . . . Robots Melted . | . . . Combat Hostiles . | . . . Parts Melted 6 | 1 5 . Heat Transferred 2412 | 248 1669 495 Parts Sabotaged . | . . . Parts Stolen . | . . . Parts Stripped . | . . . Power Chain Reactions . | . . . Alert | -11 -10 -9 ------- Run | Yrd Mat Mat Peak Influence 358 | 10 206 358 Initial 81 | . . 81 Average 55 | 1 111 194 Maximum Alert Level 1 | . 1 1 Low Security (%) 92 | 100 98 50 Level 1 7 | . 1 49 Level 2 . | . . . Level 3 . | . . . Level 4 . | . . . Level 5 . | . . . High Security . | . . . Max Security . | . . . Squads Dispatched 8 | . 4 4 Investigation 3 | . 2 1 Extermination . | . . . Reinforcement 5 | . 2 3 Assault . | . . . Garrison . | . . . Intercept . | . . . Searches Triggered . | . . . Construction Impeded . | . . . Haulers Reinforced . | . . . Active Scanning Responses . | . . . Cargo Convoy Interrupts . | . . . Stealth | -11 -10 -9 --------- Run | Yrd Mat Mat Distress Signals 2 | . 1 1 Communications Jammed . | . . . Distress Signals . | . . . Times Spotted 40 | . 21 19 Peak Tracking Total 6 | . 3 6 Tactical Retreats 2 | . 1 1 Traps | -11 -10 -9 ------- Run | Yrd Mat Mat Traps Triggered 2 | . 1 1 Indirectly . | . . . Trap Hack Attempts . | . . . Triggered . | . . . Disarmed . | . . . Reprogrammed 6 | . 6 . Reused 1 | . 1 . Traps Extracted . | . . . Installed . | . . . Triggered 2 | . 2 . Machines | -11 -10 -9 ---------- Run | Yrd Mat Mat Machines Disabled 3 | . . 3 Max in Single Turn 1 | . . 1 Machines Repaired . | . . . Machines Dismantled . | . . . Machines Sabotaged . | . . . Overloaded Fab Kills . | . . . Hacking | -11 -10 -9 --------- Run | Yrd Mat Mat Machines Accessed 5 | . 5 . Terminals 4 | . 4 . Fabricators . | . . . Repair Stations . | . . . Recycling Units 1 | . 1 . Scanalyzers . | . . . Garrison Access . | . . . Total Hacks 19 | . 19 . Successful 13 | . 13 . Failed 6 | . 6 . Catastrophic 3 | . 3 . Database Lockouts . | . . . Manual . | . . . Terminals 18 | . 18 . Fabricators . | . . . Repair Stations . | . . . Recycling Units 1 | . 1 . Scanalyzers . | . . . Garrison Access . | . . . Terminal Hacks 12 | . 12 . Record 3 | . 3 . Prototype ID Bank 1 | . 1 . Terminal Index 1 | . 1 . Alert Level 2 | . 2 . Locate Traps 1 | . 1 . Reprogram Traps 1 | . 1 . Dispatch Records 1 | . 1 . Zone Layout 2 | . 2 . Fabricator Hacks . | . . . Repair Station Hacks . | . . . Recycling Unit Hacks 1 | . 1 . Retrieve Components 1 | . 1 . Scanalyzer . | . . . Garrison Access Hacks . | . . . Unauthorized Hacks . | . . . Terminals . | . . . Fabricators . | . . . Repair Stations . | . . . Recycling Units . | . . . Scanalyzers . | . . . Garrison Access . | . . . Data Cores Recovered . | . . . Used . | . . . Hacking Detections 3 | . 3 . Full Trace Events 2 | . 2 . Feedback Events . | . . . Feedback Blocked . | . . . Robot Schematics Acquired . | . . . Robots Built . | . . . Authchips . | . . . Time . | . . . Total Robot Build Rating . | . . . Part Schematics Acquired . | . . . Parts Built . | . . . Authchips . | . . . Time . | . . . Total Part Build Rating . | . . . Parts Repaired . | . . . Time . | . . . Parts Recycled . | . . . Recycled Matter . | . . . Retrieved Matter . | . . . Retrieved Components 3 | . 3 . Parts Scanalyzed . | . . . Part Schematics Acquired . | . . . Parts Damaged . | . . . Bothacking | -11 -10 -9 ------------ Run | Yrd Mat Mat Used RIF Installer . | . . . Robots Hacked . | . . . Non-combat . | . . . Combat . | . . . Robot Hacks Applied . | . . . Relay Couplers Released . | . . . Fabnet Peak Effective % . | . . . Robots Rewired . | . . . Allies Hacked . | . . . Hacks Repelled . | . . . Allies | -11 -10 -9 -------- Run | Yrd Mat Mat Total Allies . | . . . Largest Group . | . . . Highest-Rated Group . | . . . Highest-Rated Ally . | . . . Total Orders . | . . . Ally Attacks . | . . . Total Damage . | . . . Kills . | . . . Allies Corrupted . | . . . Allies Melted . | . . . Intel | -11 -10 -9 ------- Run | Yrd Mat Mat Robot Analysis Total . | . . . Derelict Logs Recovered . | . . . Drone Launches . | . . . Drone Recoveries . | . . . Exploration | -11 -10 -9 ------------- Run | Yrd Mat Mat Turns Passed 3071 | 1879 767 425 Spaces Moved 759 | 230 344 185 Core 109 | 5 . 104 Treads 530 | 225 295 10 Legs 120 | . 49 71 Wheels . | . . . Hover . | . . . Flight . | . . . Fastest Speed 50 | 50 160 50 Average Speed 158 | 157 164 150 Slowest Speed 300 | 160 190 300 Overloaded Moves . | . . . Propulsion Burnouts . | . . . Robots Hopped . | . . . Cave-ins Triggered . | . . . Exploration Rate (%) 33 | 22 59 18 Regions Visited 2 Branch Regions . Pre-discovered Areas . | . . . Known Exits Taken . | . . . Unknown Exits Taken 2 | 1 1 . Scrap Searched . | . . . Spaces Dug . | . . . Terrain Destroyed . | . . . Melee . | . . . Projectile . | . . . AOE . | . . . Terrain Rammed . | . . . Walls Destroyed . | . . . Machines Disabled . | . . . Actions | -11 -10 -9 --------- Run | Yrd Mat Mat Total 2446 | 1737 450 259 Wait 1489 | 1488 1 . Move 757 | 229 343 185 Hop . | . . . Pick Up 33 | 8 17 8 Fast Attach . | . . . Attach 19 | 7 4 8 Detach 2 | . 1 1 Swap 10 | . 9 1 Drop 22 | . 18 4 Fire 112 | 5 57 50 Melee . | . . . Ram . | . . . Kick 2 | . . 2 Crush . | . . . Escape Stasis . | . . . Rewire . | . . . Trap . | . . . Miscellaneous . | . . . Route ------- -11/Scrapyard -10/Materials (discovered 2 exits: [*Mat] / [*Min]) -9/Materials History --------- Turn | Location | Event 3 | -11/Scrapyard | Discovered new exit (range 15) 1880 | -11/Scrapyard | Entered Materials 1881 | -10/Materials | Build established: Mutant 2152 | -10/Materials | Discovered new exit (range 12) 2474 | -10/Materials | Discovered new exit (range 16) 2509 | -10/Materials | Core integrity fell below 50% 2647 | -10/Materials | Entered another Materials area 2647 | -9/Materials | Evolved 2 slots: Power x1, Utility x1 3016 | -9/Materials | Core integrity fell below 50% 3040 | -9/Materials | Core integrity fell below 20% 3072 | -9/Materials | Destroyed by G-34 Mercenary with Small Laser Last Messages --------------- Targeting Computer destroyed. K-01 Serf collects debris. Triggered Alarm Trap. An alarm sounds. ALERT: Alarm triggered, dispatching investigation squad. R-06 Scavenger collects Lgt. Assault Rifle. O-16 Technician: "IFF HANDSHAKE FAILED. SECURING TERMINAL." U-05 Engineer lays Concrete. K-01 Serf collects debris. U-05 Engineer lays Concrete. K-01 Serf collects debris. R-06 Scavenger collects Flight Unit. K-01 Serf collects debris. Ion Engine destroyed. Lgt. Assault Rifle destroyed. T-07 Excavator is excavating. ALERT: Hostiles spotted, dispatching reinforcements to Terminal M011. Map ----- +----------------------------------------------------+ | ?????????????????????????????????????????????????? | | ?????????????????????????????????????????????????? | | ?????????????????????????????????????????????????? | | ?????????????????????????????????????????????????? | | ?????????????????????????????????????????????????? | | ?????????????????????????????????????????????????? | | ?????????????????????????????????????????????????? | | ?????????????????????????????????????????????????? | | ?????????????????????????????????????????????????? | | ?????????????????????????????????????????????????? | | ?????????????????????????????????????????????????? | | ?????????????????????????????????????????????????? | | ?????????????????????????????????????????????????? | | ?????????????????????????????????????????????????? | | ###??????????????????????????###?????????????????? | | #T#####################+##??? !##????????????????? | | #### !#????????????????? | | !#????????????????? | | "" !#????????????????? | | "" ################## !#????????????????? | | " #????#############g !##????????????????? | | % ####?# #g ####?????????????????? | | """#?# """ # #????????????????????? | | "" R"#?# """"" # #????????????????????? | | "" """#?# """"" # #????????????????????? | | " ####?# """"" # @ #######??????????????? | | % * #????# """ + ?????????? | | [% #????# ! # ?????????? | | ""* "#???############# #########+#####?????????? | | "" T#??????# #### #???????????????????????? | | "" "#??????# #???????????????????????? | | ##??????? #???????????????????????? | | #???????? #???????????????????????? | | ## ##???????? ### ####???????????????????????? | | ?# #?????????# #?? t???????????????????????????? | | ?# #?????????# #?? ???????????????????????????? | | ## ########### #?###???????????????????????????? | | #???????????????????????????????? | | #####+######## #???????????????????????????????? | | ??# #???# #???????????????????????????????? | | ??# #???# #???????????????????????????????? | | ??# " #???#####???????????????????????????????? | | ??# "T #???????????????????????????????????????? | | ??# "" #???????????????????????????????????????? | | ??# #???????????????????????????????????????? | | ??########???????????????????????????????????????? | | | | | | | | | +----------------------------------------------------+ Best States ------------- Heat Dissipation 38 Energy Generation 17 Energy Capacity 415 Matter Stores 411 Matter Capacity 450 Sight Range 16 Terrain Scan Range 16 Terrain Scan Density 10 Power Shielding 33 Evasion (%) 50 Targeting Accuracy 5 Recoil Reduction 2 Item Schematics ----------------- None Robot Schematics ------------------ None Fabricated ------------ Nothing Alien Tech Used ----------------- None Achievements -------------- None Challenges ------------ None Game ------ Seed StasisQuantumShockpuncher Manual? 0 Play Time 00:22:34 Cumulative 2.7 hours Start 2024.04.06 @ 12:31:23 End 2024.04.06 @ 12:58:03 Sessions 1 Manual Loads 0 Difficulty Rogue Special Mode None Game No. 4 Rogue 4 Adventurer 0 Explorer 0 Win Type - Total 0 Types 0/0/0/0/0/0/0/0/0 Lore% 2 Gallery% 6 Achievement% 7 Wizard Run 0 Options --------- Layout 1 ASCII 0 Keyboard 0 Movement Mouse Keybinds 0 Fullscreen 1 Font 24/Smallcaps Map View 50x35 Zoom Use 0% Tactical HUD 0 Map Filters NONE Filters NONE Steam 1 RUN: cee6dafa-1104-450e-b6fd-a32fe01c029c